Cogmind - Beta 11 X5 @@@ ROGUE MODE // 2021.07.07 @ 20:50:03 Player: Amy! Result: Destroyed by S-27 Virus with Autogun Performance ------------- Evolutions (3) 1500 Regions Visited (5) 1000 Robots Destroyed (80) 400 Value Destroyed (2770) 2770 Prototype IDs (2) 40 Alien Tech Used (0) 0 Bonus (123) 123 TOTAL SCORE: 5833 Bonus ------- High Alert Combat Kills 98 Follower Combat Kills 35 Friendly Fire -10 Cogmind --------- Core Integrity 0/700 Matter 275/300 Energy 72/100 System Corruption 1% Temperature Cool (6) Movement Flying (34) Location -7/Factory Parts ------- > --- POWER (1) -------- (None) > --- PROPULSION (4) --- VTOL Module Xenon Bombardment Thruster > --- UTILITY (5) ------ (None) > --- WEAPON (3) ------- (None) > --- INVENTORY (5) ---- Advanced Targeting Computer Advanced Beam Rifle Ion Cannon Rocket Launcher Maul Peak State ------------ > --- POWER ------------ Nuclear Core > --- PROPULSION ------- Aluminum Leg Aluminum Leg Aluminum Leg Improved Aluminum Leg > --- UTILITY ---------- Improved Heat Sink Medium Storage Unit Improved Sensor Array Improved Signal Interpreter Advanced Targeting Computer > --- WEAPON ----------- Advanced Beam Rifle Advanced Beam Rifle Advanced Beam Rifle > --- INVENTORY -------- Ion Engine Aluminum Leg Advanced Visual Processing Unit Advanced Targeting Computer Weapon Cycler Advanced Beam Rifle Beam Cannon Ion Cannon Rocket Launcher Maul [Rating: 35] Favorites ----------- Power Ion Engine Engine Ion Engine Power Core Nuclear Core Propulsion Aluminum Leg Treads Improved Treads Leg Aluminum Leg Hover Unit Hover Unit Flight Unit Xenon Bombardment Thruster Utility Medium Storage Unit Device Improved Heat Sink Storage Medium Storage Unit Processor Signal Interpreter Weapon Medium Laser Energy Gun Medium Laser Impact Weapon Mace Build | -11 -10 -9 -9 -8 -7 ------- Run | Scr Mat Mat Min Mat Fac Slots Evolved 6 | . . 2 . 2 2 Power . | . . . . . . Propulsion 2 | . . 2 . . . Utility 3 | . . . . 2 1 Weapon 1 | . . . . . 1 Parts Attached 102 | 7 7 19 16 41 12 Power 7 | 1 1 1 3 1 . Engine 6 | 1 1 1 3 . . Core 1 | . . . . 1 . Reactor . | . . . . . . Propulsion 48 | 2 4 12 6 18 6 Treads 2 | . 2 . . . . Leg 39 | 2 . 10 6 18 3 Wheel . | . . . . . . Hover 4 | . 2 2 . . . Flight 3 | . . . . . 3 Utility 19 | 1 2 1 1 12 2 Device 13 | . 1 1 1 9 1 Storage 3 | 1 1 . . 1 . Processor 3 | . . . . 2 1 Hackware . | . . . . . . Protection . | . . . . . . Artifact . | . . . . . . Weapon 28 | 3 . 5 6 10 4 Energy Gun 26 | 3 . 5 4 10 4 Energy Cannon . | . . . . . . Ballistic Gun . | . . . . . . Ballistic Cannon . | . . . . . . Launcher . | . . . . . . Special Weapon . | . . . . . . Impact Weapon 2 | . . . 2 . . Slashing Weapon . | . . . . . . Piercing Weapon . | . . . . . . Special Melee Weapon . | . . . . . . Unidentified Prototypes 2 | . . . . 2 . Parts Lost 18 | . 1 3 3 3 8 Power . | . . . . . . Propulsion 12 | . 1 3 2 1 5 Utility 2 | . . . . 1 1 Weapon 4 | . . . 1 1 2 Highest Loss Streak 3 | . 1 3 2 2 3 Average Slot Usage (%) 93 | . 87 96 92 99 92 Engine 7 | . 14 11 11 6 . Core 2 | . . . . 2 6 Treads 1 | . 6 . . . . Leg 29 | . 13 28 36 35 26 Hover 1 | . 3 12 . . . Device 12 | . 6 11 11 18 13 Storage 10 | . 14 11 11 9 6 Processor 5 | . . . . 9 14 Energy Gun 21 | . 28 22 21 17 21 Naked Turns 9 | . . . . . 9 Heaviest Build 30 | 14 20 21 24 30 27 Greatest Support 46 | 20 46 46 40 45 43 Greatest Overweight (x) 3 | 2 3 3 . . 1 Average Overweight (x) . | . . . . . . Largest Inventory Capacity 10 | 8 10 10 10 10 10 Average Capacity 9 | 7 9 10 10 10 9 Most Carried 10 | 4 10 10 10 10 10 Average Carried 9 | 2 8 9 9 9 9 Final Capacity 10 | 8 10 10 10 10 5 Final Carried 10 | 4 10 10 10 10 5 Class Distribution -------------------- 55% | Scavenger-Mutant 22% | Mutant 20% | Scavenger-Skirmisher Dominant Class ---------------- Mutant | -10/Materials Scavenger-Mutant | -9/Materials Scavenger-Mutant | -9/Mines Scavenger-Mutant | -8/Materials Scavenger-Skirmisher | -7/Factory Resources | -11 -10 -9 -9 -8 -7 ----------- Run | Scr Mat Mat Min Mat Fac Matter Collected 1201 | 264 51 246 160 355 125 Remotely . | . . . . . . Salvage Created 3385 | . 361 668 482 1250 624 Parts 135 | . 17 35 12 46 25 Haulers Intercepted 3 | . . . . 2 1 Recyclers Shooed 3 | . 1 1 . . 1 Parts Field Recycled . | . . . . . . Retrieved Matter . | . . . . . . Parts Self-Destructed . | . . . . . . Prevented . | . . . . . . Kills | -11 -10 -9 -9 -8 -7 ------- Run | Scr Mat Mat Min Mat Fac Combat Hostiles Destroyed 70 | . 8 17 12 22 11 Melee 2 | . . . 2 . . Guns 60 | . 7 15 9 18 11 AOE 3 | . . 2 . 1 . Classes Destroyed 12 | . 4 2 3 2 1 Worker 5 | . . 1 1 1 2 Hauler 3 | . . . . 2 1 Recycler 2 | . 1 1 . . . Watcher 3 | . 2 . . . 1 Swarmer 9 | . 3 3 . . 3 Grunt 44 | . 5 12 7 18 2 Brawler 1 | . . . 1 . . Duelist 1 | . . . 1 . . Sentry 8 | . . 2 . 3 3 Hunter 1 | . . . . 1 . Programmer 3 | . . . . . 3 Assembled 3 | . . . 3 . . Best Kill Streak 6 | . 3 6 3 4 4 Combat Bots Only 6 | . 3 6 2 4 3 Max Kills in Single Turn 4 | . 1 4 1 2 2 Gunslinging 1 | . . 1 . . . Exploded 2 | . . 2 . 1 . Melee 1 | . . . 1 . . Uniques/NPCs Destroyed . | . . . . . . Combat | -11 -10 -9 -9 -8 -7 -------- Run | Scr Mat Mat Min Mat Fac Damage Taken 4992 | . 348 769 689 1702 1484 Core 1306 | . 28 107 141 326 704 Absorbed by Shields . | . . . . . . Core Remaining (%) 66 | 100 88 . 38 40 . Volleys Fired 248 | . 41 40 38 91 38 Largest 3 | . 2 2 2 2 3 Hottest 191 | . 100 115 115 138 191 Shots Fired 531 | . 81 80 76 180 114 Gun 531 | . 81 80 76 180 114 Cannon . | . . . . . . Launcher . | . . . . . . Special . | . . . . . . Kinetic . | . . . . . . Thermal 531 | . 81 80 76 180 114 Explosive . | . . . . . . Electromagnetic . | . . . . . . Robot Hit Streak 13 | . 9 13 11 13 9 Robot Miss Streak 5 | . 5 2 4 4 5 Penetration Max . | . . . . . . Secondary Targets 5 | . . 2 2 . 1 Max Gunslinging Chain 1 | . . 1 1 . 1 Shots Hit Robots 347 | . 48 57 50 126 66 Core Hits 150 | . 18 33 20 50 29 Critical Kills . | . . . . . . Critical Parts Destroyed . | . . . . . . Critical Strikes 15 | . 5 . 3 4 3 Burn 15 | . 5 . 3 4 3 Melee Attacks 16 | . . . 16 . . Impact 16 | . . . 16 . . Slashing . | . . . . . . Piercing . | . . . . . . Sneak Attacks . | . . . . . . Combat Hostiles . | . . . . . . Follow-up Attacks . | . . . . . . Damage Inflicted 6199 | . 572 1111 705 2330 1481 Guns 5668 | . 572 753 617 2245 1481 Cannons . | . . . . . . Explosions 441 | . . 358 . 83 . Melee 88 | . . . 88 . . Ramming 2 | . . . . 2 . Kinetic . | . . . . . . Thermal 5668 | . 572 753 617 2245 1481 Explosive 441 | . . 358 . 83 . Electromagnetic . | . . . . . . Impact 88 | . . . 88 . . Slashing . | . . . . . . Piercing . | . . . . . . Highest Corruption 1 | . . . . . 1 Average Corruption 1 | . . . . . 1 Corruption Purged . | . . . . . . Overload Shots . | . . . . . . Overflow Damage . | . . . . . . Projectiles . | . . . . . . Explosions . | . . . . . . Melee . | . . . . . . Knockbacks . | . . . . . . Impact . | . . . . . . Kinetic . | . . . . . . Secondary . | . . . . . . Self-Inflicted Damage 196 | . . 83 . 113 . Shots 2 | . . 1 . 1 . Rammed . | . . . . . . Targets Rammed 1 | . . . . 1 . Kicked 1 | . . . . 1 . Crushed . | . . . . . . Highest Temperature 363 | . 345 363 55 310 318 Average Temperature 95 | . 99 93 19 109 109 Received Heat Transfer 1443 | . 150 240 216 756 81 Effects 9 | . 2 2 . 4 1 Shutdowns 1 | . . 1 . . . Energy Bleed 2 | . . . . 1 1 Interference 5 | . 2 . . 3 . Matter Decay 1 | . . 1 . . . Siege Activations . | . . . . . . Robots Corrupted . | . . . . . . Combat Hostiles . | . . . . . . Parts Fried . | . . . . . . Impact Corruptions . | . . . . . . Robots Melted 5 | . 1 . 1 3 . Combat Hostiles 5 | . 1 . 1 3 . Parts Melted 38 | . 4 8 7 10 9 Heat Transferred 14027 | . 2072 2109 1998 4999 2849 Parts Sabotaged . | . . . . . . Parts Stolen . | . . . . . . Parts Stripped . | . . . . . . Power Chain Reactions . | . . . . . . Missiles Intercepted . | . . . . . . Alert | -11 -10 -9 -9 -8 -7 ------- Run | Scr Mat Mat Min Mat Fac Peak Influence 609 | . 184 539 315 508 609 Initial 210 | . . 29 210 31 186 Average 203 | . 92 287 189 259 214 Maximum Alert Level 2 | . . 2 1 2 2 Low Security (%) 51 | 100 100 33 54 32 39 Level 1 39 | . . 35 45 50 55 Level 2 8 | . . 31 . 17 5 Level 3 . | . . . . . . Level 4 . | . . . . . . Level 5 . | . . . . . . High Security . | . . . . . . Max Security . | . . . . . . Squads Dispatched 15 | . 2 2 . 6 5 Investigation 1 | . . . . 1 . Extermination 1 | . . . . . 1 Reinforcement 11 | . 2 2 . 5 2 Assault . | . . . . . . Garrison 2 | . . . . . 2 Intercept . | . . . . . . Construction Impeded . | . . . . . . Haulers Reinforced . | . . . . . . Cargo Convoy Interrupts 1 | . . . . . 1 Stealth | -11 -10 -9 -9 -8 -7 --------- Run | Scr Mat Mat Min Mat Fac Distress Signals 9 | . . 5 . 4 . Communications Jammed . | . . . . . . Distress Signals . | . . . . . . Times Spotted 143 | . 15 29 13 43 43 Peak Tracking Total 17 | . 2 7 4 7 17 Tactical Retreats 5 | . . 1 2 . 2 Traps | -11 -10 -9 -9 -8 -7 ------- Run | Scr Mat Mat Min Mat Fac Traps Triggered 2 | . . 1 . . 1 Indirectly . | . . . . . . Trap Hack Attempts . | . . . . . . Triggered . | . . . . . . Disarmed . | . . . . . . Reprogrammed . | . . . . . . Reused . | . . . . . . Traps Extracted . | . . . . . . Installed . | . . . . . . Triggered . | . . . . . . Machines | -11 -10 -9 -9 -8 -7 ---------- Run | Scr Mat Mat Min Mat Fac Machines Disabled 3 | . . 1 . 1 1 Max in Single Turn 1 | . . 1 . 1 1 Machines Sabotaged . | . . . . . . Garrisons Compromised . | . . . . . . Overloaded Fab Kills . | . . . . . . Fab Network Shutdowns . | . . . . . . Hacking | -11 -10 -9 -9 -8 -7 --------- Run | Scr Mat Mat Min Mat Fac Machines Accessed 7 | . . 2 . 2 3 Terminals 7 | . . 2 . 2 3 Fabricators . | . . . . . . Repair Stations . | . . . . . . Recycling Units . | . . . . . . Scanalyzers . | . . . . . . Garrison Access . | . . . . . . Total Hacks 22 | . . 4 . 10 8 Successful 7 | . . 1 . 4 2 Failed 15 | . . 3 . 6 6 Catastrophic 3 | . . 3 . . . Database Lockouts . | . . . . . . Manual 20 | . . 3 . 10 7 Terminals 22 | . . 4 . 10 8 Fabricators . | . . . . . . Repair Stations . | . . . . . . Recycling Units . | . . . . . . Scanalyzers . | . . . . . . Garrison Access . | . . . . . . Terminal Hacks 2 | . . 1 . 1 . Alert Level 2 | . . 1 . 1 . Fabricator Hacks . | . . . . . . Repair Station Hacks . | . . . . . . Recycling Unit Hacks . | . . . . . . Scanalyzer . | . . . . . . Garrison Access Hacks . | . . . . . . Unauthorized Hacks 5 | . . . . 3 2 Terminals 5 | . . . . 3 2 Assimilate 1 | . . . . 1 . Botnet 4 | . . . . 2 2 Fabricators . | . . . . . . Repair Stations . | . . . . . . Recycling Units . | . . . . . . Scanalyzers . | . . . . . . Garrison Access . | . . . . . . Data Cores Recovered . | . . . . . . Used . | . . . . . . Hacking Detections 7 | . . 2 . 2 3 Full Trace Events 1 | . . . . 1 . Feedback Events . | . . . . . . Feedback Blocked . | . . . . . . Robot Schematics Acquired . | . . . . . . Robots Built . | . . . . . . Matter . | . . . . . . Time . | . . . . . . Total Robot Build Rating . | . . . . . . Part Schematics Acquired . | . . . . . . Parts Built . | . . . . . . Matter . | . . . . . . Time . | . . . . . . Total Part Build Rating . | . . . . . . Parts Repaired . | . . . . . . Time . | . . . . . . Parts Recycled . | . . . . . . Recycled Matter . | . . . . . . Retrieved Matter . | . . . . . . Retrieved Components . | . . . . . . Parts Scanalyzed . | . . . . . . Part Schematics Acquired . | . . . . . . Parts Damaged . | . . . . . . Bothacking | -11 -10 -9 -9 -8 -7 ------------ Run | Scr Mat Mat Min Mat Fac Used RIF Installer . | . . . . . . Robots Hacked . | . . . . . . Non-combat . | . . . . . . Combat . | . . . . . . Robot Hacks Applied . | . . . . . . Relay Couplers Released . | . . . . . . Robots Rewired . | . . . . . . Allies Hacked . | . . . . . . Hacks Repelled . | . . . . . . Allies | -11 -10 -9 -9 -8 -7 -------- Run | Scr Mat Mat Min Mat Fac Total Allies 3 | . . . 3 . . Largest Group 3 | . . . 3 1 . Highest-Rated Group 40 | . . . 40 16 . Highest-Rated Ally 16 | . . . 16 16 . Total Orders . | . . . . . . Ally Attacks 12 | . . . 5 7 . Total Damage 154 | . . . 42 112 . Kills 1 | . . . . 1 . Allies Corrupted . | . . . . . . Allies Melted . | . . . . . . Intel | -11 -10 -9 -9 -8 -7 ------- Run | Scr Mat Mat Min Mat Fac Robot Analysis Total . | . . . . . . Derelict Logs Recovered 1 | . . . 1 . . Drone Launches . | . . . . . . Drone Recoveries . | . . . . . . Exploration | -11 -10 -9 -9 -8 -7 ------------- Run | Scr Mat Mat Min Mat Fac Turns Passed 3831 | 64 619 388 949 935 876 Spaces Moved 2237 | 42 308 241 614 419 613 Core 22 | 6 . . . . 16 Treads 70 | . 70 . . . . Legs 1886 | 36 169 139 614 419 509 Wheels . | . . . . . . Hover 171 | . 69 102 . . . Flight 88 | . . . . . 88 Fastest Speed 30 | 50 116 48 120 120 30 Average Speed 117 | 120 144 93 120 120 108 Slowest Speed 240 | 200 240 240 120 120 200 Overloaded Moves . | . . . . . . Propulsion Burnouts . | . . . . . . Robots Hopped 4 | . . . . . 4 Cave-ins Triggered . | . . . . . . Exploration Rate (%) 36 | 4 45 27 85 38 21 Regions Visited 5 Branch Regions 1 Pre-discovered Areas 2 | . . . 2 . . Known Exits Taken 1 | . . . . 1 . Unknown Exits Taken 4 | 1 1 1 1 . . Scrap Searched 2 | . . . 2 . . Spaces Dug . | . . . . . . Terrain Destroyed 49 | . . 29 . 20 . Melee . | . . . . . . Projectile . | . . . . . . AOE 49 | . . 29 . 20 . Terrain Rammed . | . . . . . . Walls Destroyed . | . . . . . . Machines Disabled . | . . . . . . Actions | -11 -10 -9 -9 -8 -7 --------- Run | Scr Mat Mat Min Mat Fac Total 2933 | 52 403 328 727 690 733 Wait 224 | . 24 13 31 93 63 Move 2226 | 41 307 240 613 418 607 Hop 2 | . . . . . 2 Pick Up 35 | 3 12 3 4 8 5 Fast Attach 34 | 7 6 6 4 5 6 Attach 15 | . . 4 2 6 3 Detach 4 | 1 1 1 . 1 . Swap 53 | . 1 9 10 30 3 Drop 75 | . 11 12 9 37 6 Fire 248 | . 41 40 38 91 38 Melee 16 | . . . 16 . . Ram . | . . . . . . Kick 1 | . . . . 1 . Crush . | . . . . . . Escape Stasis . | . . . . . . Rewire . | . . . . . . Trap . | . . . . . . Miscellaneous . | . . . . . . Route ------- -11/Scrapyard -10/Materials (discovered 2 exits: *Mat / [*Min]) -9/Materials -9/Mines (discovered 2 exits: *Mat x2) -8/Materials -7/Factory History --------- Turn | Location | Event 17 | -11/Scrapyard | Discovered new exit (range 15) 65 | -11/Scrapyard | Entered Materials 307 | -10/Materials | Build established: Mutant 444 | -10/Materials | Discovered new exit (range 7) 652 | -10/Materials | Discovered new exit (range 7) 684 | -10/Materials | Entered another Materials area 684 | -9/Materials | Evolved 2 slots: Propulsion x2 797 | -9/Materials | Lost 3 parts (3n) 1057 | -9/Materials | Discovered new exit (range 7) 1072 | -9/Materials | Entered Mines 1075 | -9/Mines | Met a Derelict bent on vengeance 1135 | -9/Mines | Build established: Scavenger-Mutant 1196 | -9/Mines | Learned location of Storage (-8) 1447 | -9/Mines | Learned location of Zion (-6) 1484 | -9/Mines | Discovered new exit (range 6) 1492 | -9/Mines | Received a Rocket Launcher from a helpful Derelict 1552 | -9/Mines | Assisted by bots powering up and referring to "LRC-V3" 1624 | -9/Mines | Excavation squad dispatched 1624 | -9/Mines | A large section of the Mines collapsed 1684 | -9/Mines | Discovered new exit (range 10) 1802 | -9/Mines | Core integrity fell below 50% 2021 | -9/Mines | Entered Materials 2021 | -8/Materials | Accompanied by 1 ally 2021 | -8/Materials | Evolved 2 slots: Utility x2 2893 | -8/Materials | Discovered new exit (range 16) 2917 | -8/Materials | Core integrity fell below 50% 2955 | -8/Materials | Identified exit to Factory 2956 | -8/Materials | Entered Factory 2956 | -7/Factory | Evolved 2 slots: Utility x1, Weapon x1 3448 | -7/Factory | Build established: Scavenger-Skirmisher 3674 | -7/Factory | Garrison activated, responded to threat 3785 | -7/Factory | Cargo convoy interrupted 3788 | -7/Factory | Released all parts (7) 3796 | -7/Factory | Core integrity fell below 50% 3800 | -7/Factory | Core integrity fell below 20% 3819 | -7/Factory | Lost 3 parts (1n2w) 3832 | -7/Factory | Destroyed by S-27 Virus with Autogun Last Messages --------------- 03789_ C-30 ARC bursts open, deploying its payload. 03789_ H-55 Commando unfolds itself. 03789_ M-28 Smith unfolds itself. 03789_ Slug penetrates Terminal. 03791_ Penetrated by Slug. 03791_ Slug penetrates H-55 Commando. 03792_ Slug penetrates M-28 Smith. 03792_ Penetrated by Slug. 03792_ K-01 Serf collects debris. 03793_ Penetrated by Slug. 03795_ Slug penetrates Construction Platform. 03795_ Construction Platform disabled. 03795_ Penetrated by Slug. 03795_ Slug penetrates H-55 Commando. 03797_ Penetrated by Slug. 03797_ Acquired Xenon Bombardment Thruster. 03798_ K-01 Serf collects debris. 03812_ Acquired VTOL Module. 03824_ VTOL Module destroyed. 03824_ S-27 Virus misfires. Map ----- +----------------------------------------------------+ | ??????????????????????????# #? #? | | ??????????????????????????# #? ?? ?? | | ??????????????????????##### #??? ?????? ?? | | ??????????????????????+ #?????????????? | | ?????????????######???######## #?????????????? | | ????????????? ??????????# #?????????????? | | ?????????????? ?????????# #?????????????? | | ?????????????? """ ?######## #?????????????? | | ?????????????? """ # #?????????????? | | ????????????"" """ # #?????????????? | | ?????????# / #?????????????? | | ????????????"" """ # #?????????????? | | ?????????????? """ ?# #?????????????? | | ?????????????? """ ??# #?????????????? | | ?????????????? ????# #?????????????? | | ?????????????? ?????# #?????????????? | | ????????????? ??????# +?????????????? | | ????????????##????????# #?????????????? | | ??????????????????????# #?????????????? | | ??????????????????????# #?????????????? | | ??????????????????????# #?????????????? | | ??????????????????????# #?????????????? | | ??????????##########+## #?????????????? | | ??????? +?????????????? | | ??????? #?????????????? | | ??????? @ #?????????????? | | ???????? #?????????????? | | ???????? ########+######### #?????????????? | | ?????????????????????????????? #?????????????? | | ??????????????????????????????? #?????????????? | | ???????????????????????????????? #?????????????? | | ????????????????????????????????? #?????????????? | | ?????????????????????????????????????????????????? | | ?????????????????????????????????????????????????? | | ?????????????????????????????????????????????????? | | ?????????????????????????????????????????????????? | | ?????????????????????????????????????????????????? | | ?????????????????????????????????????????????????? | | ?????????????????????????????????????????????????? | | ?????????????????????????????????????????????????? | | ?????????????????????????????????????????????????? | | ?????????????????????????????????????????????????? | | ?????????????????????????????????????????????????? | | ?????????????????????????????????????????????????? | | ?????????????????????????????????????????????????? | | ?????????????????????????????????????????????????? | | ?????????????????????????????????????????????????? | | ?????????????????????????????????????????????????? | | ?????????????????????????????????????????????????? | | ?????????????????????????????????????????????????? | +----------------------------------------------------+ Best States ------------- Heat Dissipation 48 Energy Generation 14 Energy Capacity 265 Matter Stores 300 Matter Capacity 300 Sight Range 16 Robot Scan Range 15 Terrain Scan Density 10 Evasion (%) 64 Targeting Accuracy 8 Recoil Reduction 2 Item Schematics ----------------- None Robot Schematics ------------------ None Fabricated ------------ Nothing Alien Tech Used ----------------- None Achievements -------------- None Challenges ------------ None Game ------ Seed RegenerativeThermalArmor Manual? 0 Play Time 00:41:34 Cumulative 77.6 hours Start 2021.07.07 @ 20:06:48 End 2021.07.07 @ 20:50:03 Sessions 1 Manual Loads 0 Difficulty Rogue Special Mode None Game No. 47 Rogue 47 Adventurer 0 Explorer 0 Win Type - Total 1 Types 1/0/0/0/0/0/0/0/0 Lore% 51 Gallery% 53 Achievement% 46 Wizard Run 0 Options --------- ASCII 1 Keyboard 1 Movement Vi Keybinds 0 Fullscreen 2 Font 18/SmallcapsGlow Map View 76x50 Tactical HUD 1 Map Filters NONE Filters NONE Steam 1 RUN: 6c45debc-4919-4b48-88a1-7bcae8f6a056